fUST/lending_fUST_20251107
["ID","MTS","AMOUNT","RATE_DAILY","PERIOD"]
[393309953,1762447838974,-1000.0,0.00019321,2]
[393309954,1762447838983,-575.19154629,0.00019421,2]
[393309955,1762447838993,-572.4675767,0.00019424,2]
[393309956,1762447839002,-500.0,0.00019424,2]
[393309957,1762447839012,-749.14094162,0.00019424,2]
[393309958,1762447839022,-1000.0,0.00019424,2]
[393309959,1762447839031,-1000.0,0.00019424,2]
[393309960,1762447839042,-500.0,0.0001965,2]
[393309961,1762447839057,-249.89796512,0.00019678,2]
[393309962,1762447839068,-1005.52981895,0.00019868,2]
[393309963,1762447839079,-500.0,0.00019868,2]
[393309964,1762447839088,-500.0,0.00019875,2]
[393309965,1762447839098,-1004.11390506,0.00019972,2]
[393309966,1762447839108,-484.87209123,0.00019972,2]
[393309967,1762447839119,-154.0,0.0002,2]
[393309968,1762447839129,-386.6,0.0002008,2]
[393309969,1762447839139,-204.0,0.00020198,2]
[393309970,1762447839149,-420.0,0.00020357,2]
[393309971,1762447839158,-249.89796512,0.00020381,2]
[393309972,1762447839168,-1547.0,0.00020456,2]
[393309973,1762447839179,-249.89796512,0.00021084,2]
[393309974,1762447839188,-154.0,0.000212,2]
[393309975,1762447839198,-483.25,0.00021514,2]
[393309976,1762447839210,-250.14786309,0.00021787,2]
[393309977,1762447839220,-150.0,0.00021866,15]
[393309978,1762447839229,-500.0,0.00021973,2]
[393309979,1762447839355,-180.0,0.00022197,2]
[393309980,1762447839369,-231.0,0.00022198,2]
[393309981,1762447839379,-154.0,0.000224,2]
[393309982,1762447839389,-579.91,0.00022949,2]
[393309983,1762447839399,-188.61784449,0.00023625,2]
[393309984,1762447839410,-154.0,0.000237,2]
[393309985,1762447839420,-160.0,0.00024046,2]
[393309986,1762447839429,-258.0,0.00024198,2]
[393309987,1762447839439,-676.56,0.00024383,2]
[393309988,1762447839449,-423.92,0.00024573,2]
[393309989,1762447839462,-51009.0154578,0.000249,2]
[393309990,1762447839472,-154.0,0.000249,2]
[393309991,1762447839482,-500.0,0.00024999,2]
[393309992,1762447839491,-500.0,0.00024999,2]
[393309993,1762447839501,-500.0,0.00024999,2]
[393309994,1762447839511,-500.0,0.00024999,2]
[393309995,1762447839522,-500.0,0.00024999,2]
[393309996,1762447839531,-500.0,0.00024999,2]
[393309997,1762447839541,-500.0,0.00024999,2]
[393309998,1762447839551,-500.0,0.00024999,2]
[393309999,1762447839566,-294.13263672,0.00024999,2]
[393310000,1762447839576,-500.0,0.00025591,2]
[393310001,1762447839586,-500.0,0.00025591,2]
[393310002,1762447839596,-773.21,0.00025817,2]
[393310003,1762447839605,-285.0,0.00026198,2]
[393310004,1762447839615,-500.0,0.0002636,2]
[393310005,1762447839624,-500.0,0.00026575,2]
[393310006,1762447839633,-500.0,0.00026725,2]
[393310007,1762447839643,-869.86,0.00027251,2]
[393310008,1762447839654,-568.4,0.000281,7]
[393310009,1762447839664,-51009.0154578,0.00028185,2]
[393310010,1762447839673,-500.0,0.00028195,2]
[393310011,1762447839683,-500.0,0.00028195,2]
[393310012,1762447839692,-312.0,0.00028198,2]
[393310013,1762447839703,-500.0,0.0002825,2]
[393310014,1762447839713,-500.0,0.0002825,2]
[393310015,1762447839723,-500.0,0.00028305,2]
[393310016,1762447839733,-535.0,0.00028305,2]
[393310017,1762447839742,-500.0,0.00028359,2]
[393310018,1762447839752,-500.0,0.00028414,2]
[393310019,1762447839761,-255.0,0.00028469,2]
[393310020,1762447839771,-501.63939144,0.00028573,5]
[393310021,1762447839780,-966.51,0.00028686,2]
[393310022,1762447839790,-188.61784449,0.00028837,4]
[393310023,1762447839804,-339.0,0.00030198,2]
[393310024,1762447839813,-358.162837,0.00030271,2]
[393310025,1762447839822,-173.952338,0.00031104,60]
[393310026,1762447839832,-35238.57895575,0.00031988,2]
[393310027,1762447839846,-1708.23953616,0.0003199,2]
[393310028,1762447839855,-366.0,0.00032198,2]
[393310029,1762447839865,-183.71590294,0.00032265,2]
[393310030,1762447839875,-330.6886253,0.00032265,2]
[393310031,1762447839884,-1226.17483425,0.00032587,2]
[393310032,1762447839894,-51009.0154578,0.00032677,2]
[393310033,1762447839903,-337.33478963,0.00032687,3]
[393310034,1762447839912,-568.4,0.000327,7]
[393310035,1762447839922,-2537.6362064,0.00032853,2]
[393310036,1762447839931,-713.53,0.00032877,10]
[393310037,1762447839941,-594.61,0.00032877,10]
[393310038,1762447839950,-500.0,0.0003298,60]
[393310039,1762447839962,-500.0,0.0003298,60]
[393310040,1762447839971,-153027.046373,0.0003298,2]
[393310041,1762447839981,-151.405992,0.0003299,30]
[393310042,1762447839991,-151.0,0.0003299,7]
[393310043,1762447840000,-151.0,0.0003299,7]
[393310044,1762447840010,-153.131559,0.0003299,31]
[393310045,1762447840019,-151.0,0.0003299,2]
[393310046,1762447840031,-151.0,0.0003299,31]
[393310047,1762447840041,-542.085339,0.0003299,31]
[393310048,1762447840052,-542.085339,0.0003299,31]
[393310049,1762447840062,-151.0,0.0003299,31]
[393310050,1762447840072,-542.085339,0.0003299,31]
[393310051,1762447840082,-250.937165,0.0003299,31]
[393310052,1762447840092,-542.085339,0.0003299,31]
[393310053,1762447840101,-250.937165,0.0003299,31]
[393310054,1762447840111,-151.0,0.0003299,2]
[393310055,1762447840121,-163570.74765038,0.0003299,2]
[393310084,1762447840770,-250.937165,0.0003299,31]
[393310086,1762447840780,-13.04931647,0.0003299,31]
[393310096,1762447840879,-173.10417553,0.0003299,31]
[393310098,1762447840890,-10471.89582447,0.0003299,2]
[393310326,1762447843843,-250.937165,0.0003299,31]
[393310327,1762447843853,-186.153492,0.0003299,31]
[393310328,1762447843863,-186.153492,0.0003299,31]
[393310329,1762447843875,-510957.35652515,0.0003299,2]
[393310330,1762447843884,-587.30299853,0.00033057,2]
[393310332,1762447843894,-151.0,0.000331,31]
[393310334,1762447843903,-151.648538,0.0003311,31]
[393310335,1762447843912,-266.451153,0.00033165,2]
[393310336,1762447843921,-500.0,0.00033199,60]
[393310337,1762447843930,-163.55,0.000332,7]
[393310338,1762447843940,-186.88296597,0.000332,117]
[393310339,1762447843950,-507.18647553,0.00033209,60]
[393310340,1762447843961,-299850.7695,0.0003322,30]
[393310341,1762447843971,-151.0,0.0003322,31]
[393310342,1762447843981,-151.0,0.0003322,7]
[393310343,1762447843990,-151.0,0.0003322,2]
[393310344,1762447844000,-151.0,0.0003322,31]
[393310345,1762447844010,-542.085339,0.0003322,31]
[393310346,1762447844020,-542.085339,0.0003322,31]
[393310347,1762447844029,-172.472403,0.0003322,31]
[393310348,1762447844039,-542.085339,0.0003322,31]
[393310349,1762447844048,-250.937165,0.0003322,31]
[393310350,1762447844058,-542.085339,0.0003322,31]
[393310351,1762447844068,-250.937165,0.0003322,31]
[393310352,1762447844077,-250.937165,0.0003322,31]
[393310353,1762447844087,-186.153492,0.0003322,31]
[393310354,1762447844097,-186.153492,0.0003322,31]
[393310355,1762447844107,-250.937165,0.0003322,31]
[393310356,1762447844116,-490.07,0.000333,14]
[393310357,1762447844125,-165.19392951,0.00033363,2]
[393310358,1762447844135,-188.80646233,0.00034048,7]
[393310359,1762447844144,-393.0,0.00034198,120]
[393310360,1762447844153,-1226.17483423,0.00034851,2]
[393310361,1762447844162,-200.0,0.000354,40]
[393310362,1762447844172,-1183.1908746,0.00035672,30]
[393310363,1762447844181,-317.6347588,0.00035672,30]
[393310364,1762447844190,-275.0,0.00036,20]
[393310365,1762447844200,-49319.38374328,0.00036,2]
[393310366,1762447844213,-420.0,0.00036198,120]
[393310367,1762447844222,-500.0,0.00036221,120]
[393310368,1762447844231,-291.01,0.00036221,120]
[393310369,1762447844240,-200.0,0.00036329,120]
[393310370,1762447844250,-175.739,0.00036419,5]
[393310371,1762447844259,-184.851,0.00036419,5]
[393310372,1762447844268,-200.0,0.00036439,120]
[393310373,1762447844278,-720107.31973197,0.000365,10]
[393310374,1762447844289,-3249.99999995,0.000365,10]
[393310375,1762447844301,-3195.57931145,0.000365,10]
[393310376,1762447844312,-16778.25417701,0.000365,10]
[393310377,1762447844323,-8723.665,0.000365,10]
[393310378,1762447844342,-186.153492,0.0003322,31]
[393310379,1762447844351,-557.98238434,0.000365,10]
[393310441,1762447847148,-186.153492,0.0003299,31]
[393310442,1762447847159,-186.153492,0.0003322,31]
[393310443,1762447847169,-4.373016,0.000365,10]
[393310444,1762447847180,-20300.0,0.000365,10]
[393310445,1762447847202,-14652.01132879,0.000365,10]
[393310446,1762447847216,-20228.90987893,0.000365,10]
[393310447,1762447847227,-2272.23679476,0.000365,10]
[393310448,1762447847255,-1013100.0,0.000365,10]
[393310449,1762447847469,-680.90757339,0.000365,10]
[393310453,1762448032235,10000.0,0.00037201,20]
[393310456,1762448222192,500.0,0.00037201,60]
[393310457,1762448222599,500.0,0.00037201,60]
[393310458,1762448223000,500.0,0.00037201,60]
[393310459,1762448223372,500.0,0.00037201,60]
[393310460,1762448223752,500.0,0.00037201,60]
[393310461,1762448224189,500.0,0.00037201,60]
[393310462,1762448224561,500.0,0.00037201,60]
[393310463,1762448224953,500.0,0.00037201,60]
[393310464,1762448225349,500.0,0.00037201,60]
[393310465,1762448225734,500.0,0.00037201,60]
[393310466,1762448226114,500.0,0.00037201,60]
[393310467,1762448226501,500.0,0.00037201,60]
[393310468,1762448226916,500.0,0.00037201,60]
[393310469,1762448227353,500.0,0.00037201,60]
[393310470,1762448227737,500.0,0.00037201,60]
[393310471,1762448228148,500.0,0.00037201,120]
[393310472,1762448228540,500.0,0.00037201,120]
[393310473,1762448228927,500.0,0.00037201,120]
[393310474,1762448229342,500.0,0.00037201,120]
[393310475,1762448229736,500.0,0.00037201,120]
[393310476,1762448230117,500.0,0.00037201,120]
[393310477,1762448230495,500.0,0.00037201,120]
[393310478,1762448230872,511.669308,0.00037201,120]
[393310479,1762448290066,1288.0,0.00014494,2]
[393310480,1762448446948,241.847187,0.00013699,2]
[393310518,1762449031895,-244.37,0.00014773,2]
[393310519,1762449031905,-209.41,0.00014922,2]
[393310537,1762449037614,-34.96,0.00014922,2]
[393310539,1762449037624,-244.37,0.00015073,2]
[393310541,1762449037634,-244.37,0.00015225,2]
[393310543,1762449037643,-227.79055537,0.000153,2]
[393310545,1762449037653,-177.0,0.00018222,2]
[393310546,1762449037663,-163.4530857,0.00018797,2]
[393310868,1762449130526,1282.36,0.00032877,120]
[393310884,1762449497557,4178.0,0.00037199,20]
[393310929,1762449949972,35000.594904,0.00032877,120]
[393310933,1762450114174,22622.43502283,0.00037199,60]
[393310934,1762450119746,500.40543788,0.00037199,20]
[393310988,1762450232029,-829.02928524,0.00018,2]
[393310990,1762450232039,-233.0,0.00018,2]
[393310991,1762450232176,-150.0,0.00018207,2]
[393310992,1762450232186,-179.081418,0.00018415,2]
[393310993,1762450232196,-582.51090022,0.000185,2]
[393310994,1762450232206,-64.17839654,0.00018551,2]
[393310995,1762450232218,-235.82160346,0.00018551,2]
[393310996,1762450232228,-91.63585582,0.00018551,2]
[393310997,1762450232244,-208.36414418,0.00018551,2]
[393310998,1762450232254,-500.0,0.00018552,2]
[393310999,1762450232263,-49.76229048,0.00018552,2]
[393311055,1762450240159,-500.0,0.00018551,2]
[393311062,1762450240214,-378.1999,0.00018551,2]
[393311303,1762450243131,-121.8001,0.00018551,2]
[393311304,1762450243143,-500.0,0.00018551,2]
[393311305,1762450243152,-500.0,0.00018551,2]
[393311306,1762450243161,-326.73828989,0.00018551,2]
[393311307,1762450243171,-500.0,0.00018551,2]
[393311308,1762450243180,-500.0,0.00018551,2]
[393311309,1762450243189,-112.45923294,0.00018551,2]
[393311310,1762450243200,-344.8474044,0.00018551,2]
[393311318,1762450246956,-158.05066372,0.00018551,2]
[393311319,1762450246967,-500.0,0.00018551,2]
[393311320,1762450246978,-500.0,0.00018551,2]
[393311321,1762450246988,-500.0,0.00018551,2]
[393311322,1762450247000,-500.0,0.00018551,2]
[393311323,1762450247013,-500.0,0.00018551,2]
[393311324,1762450247024,-500.0,0.00018551,2]
[393311325,1762450247036,-312.40674419,0.00018551,2]
[393311326,1762450247048,-500.0,0.00018551,2]
[393311327,1762450247065,-500.0,0.00018551,2]
[393311328,1762450247077,-565.059101,0.00018551,2]
[393311329,1762450247088,-291.78919534,0.00018551,2]
[393311330,1762450247098,-2052.10603936,0.00018552,2]
[393311331,1762450247111,-356.32752106,0.00018552,2]
[393311334,1762450316615,4167.94,0.00037199,60]
[393311335,1762450317005,4167.94,0.00037199,60]
[393311336,1762450317380,4167.94,0.00037199,60]
[393311337,1762450317766,4167.94,0.00037199,60]
[393311338,1762450318191,4167.94,0.00037199,60]
[393311339,1762450318572,4167.94,0.00037199,60]
[393311340,1762450318960,4167.94,0.00037199,60]
[393311341,1762450319331,4167.94,0.00037199,60]
[393311342,1762450319714,4167.94,0.00037199,60]
[393311343,1762450320135,4167.94,0.00037199,60]
[393311344,1762450320560,4167.94,0.00037199,60]
[393311345,1762450320933,4167.94,0.00037199,60]
[393311346,1762450321327,4167.94,0.00037199,60]
[393311347,1762450321719,4167.94,0.00037199,60]
[393311348,1762450322117,4167.94,0.00037199,60]
[393311349,1762450322498,4167.94,0.00037199,120]
[393311350,1762450322891,4167.94,0.00037199,120]
[393311351,1762450323270,4167.94,0.00037199,120]
[393311352,1762450323676,4167.94,0.00037199,120]
[393311353,1762450324053,4167.94,0.00037199,120]
[393311354,1762450324525,4167.94,0.00037199,120]
[393311355,1762450324896,4167.94,0.00037199,120]
[393311356,1762450325286,4167.94,0.00037199,120]
[393311357,1762450325708,4168.091304,0.00037199,120]
[393311374,1762450858987,159.0,1.02e-06,2]
[393311376,1762450862179,159.0,1.02e-06,2]
[393311377,1762450864063,159.0,1.02e-06,2]
[393311378,1762450866423,159.0,1.02e-06,2]
[393311379,1762450869368,159.0,1.02e-06,2]
[393311380,1762450872345,159.0,1.02e-06,2]
[393311381,1762450874295,159.0,1.02e-06,2]
[393311382,1762450876493,159.0,1.02e-06,2]
[393311383,1762450879534,159.0,1.02e-06,2]
[393311384,1762450881112,159.0,1.02e-06,2]
[393311385,1762450975014,500.0,0.000372,60]
[393311386,1762450975401,430.925,0.000372,60]
[393311387,1762451004164,150.0,0.000137,2]
[393311388,1762451010587,500.0,0.00037239,60]
[393311389,1762451011014,500.0,0.00037239,60]
[393311390,1762451011399,500.0,0.00037239,60]
[393311391,1762451011804,500.0,0.00037239,60]
[393311392,1762451012195,500.0,0.00037239,60]
[393311393,1762451012610,297.499999,0.00037239,60]
[393311394,1762451014307,150.0,0.000137,2]
[393311395,1762451024804,150.0,0.000137,2]
[393311396,1762451035061,150.0,0.000137,2]
[393311397,1762451066496,150.0,0.000137,2]
[393311398,1762451069146,150.0,0.000137,2]
[393311399,1762451079087,150.0,0.000137,2]
[393311400,1762451079326,150.0,0.000137,2]
[393311401,1762451089825,150.0,0.000137,2]
[393311402,1762451091355,150.0,0.000137,2]
[393311403,1762451117176,150.0,0.000137,2]
[393311404,1762451120488,150.0,0.000137,2]
[393311405,1762451121137,150.0,0.000137,2]
[393311406,1762451127379,150.0,0.000137,2]
[393311407,1762451130981,150.0,0.000137,2]
[393311408,1762451132814,150.0,0.000137,2]
[393311409,1762451138649,150.0,0.000137,2]
[393311410,1762451139363,150.0,0.000137,2]
[393311411,1762451142086,150.0,0.000137,2]
[393311412,1762451142342,338.63,0.00014625,2]
[393311413,1762451149347,150.0,0.000137,2]
[393311414,1762451150758,338.63,0.00014625,2]
[393311415,1762451152072,150.0,0.000137,2]
[393311416,1762451152997,150.0,0.000137,2]
[393311417,1762451155804,150.0,0.000137,2]
[393311418,1762451159498,338.63,0.00014625,2]
[393311419,1762451167232,150.0,0.00014699,2]
[393311421,1762451175232,150.0,0.00014699,2]
[393311422,1762451178401,150.0,0.000137,2]
[393311423,1762451179481,150.0,0.000137,2]
[393311424,1762451180370,150.0,0.000137,2]
[393311425,1762451182610,150.0,0.000137,2]
[393311426,1762451185047,150.0,0.00014699,2]
[393311427,1762451185265,150.0,0.000137,2]
[393311428,1762451188911,150.0,0.000137,2]
[393311429,1762451190477,150.0,0.000137,2]
[393311430,1762451193520,150.0,0.00014699,2]
[393311431,1762451193623,150.0,0.000137,2]
[393311432,1762451197149,150.0,0.000137,2]
[393311433,1762451199245,150.0,0.000137,2]
[393311434,1762451200229,150.0,0.000137,2]
[393311435,1762451201938,150.0,0.00014699,2]
[393311436,1762451204382,150.0,0.000137,2]
[393311437,1762451207790,150.0,0.000137,2]
[393311438,1762451209437,150.0,0.000137,2]
[393311439,1762451209921,150.0,0.00014699,2]
[393311440,1762451212481,150.0,0.000137,2]
[393311441,1762451214950,150.0,0.000137,2]
[393311442,1762451217627,150.0,0.00014699,2]
[393311443,1762451219430,150.0,0.000137,2]
[393311444,1762451222751,150.0,0.000137,2]
[393311445,1762451226954,150.0,0.00014699,2]
[393311446,1762451231995,150.0,0.000137,2]
[393311447,1762451234785,150.0,0.00014699,2]
[393311448,1762451241219,150.0,0.000137,2]
[393311449,1762451243115,150.0,0.00014699,2]
[393311450,1762451244463,150.0,0.000137,2]
[393311451,1762451245587,150.0,0.000137,2]
[393311452,1762451246583,150.0,0.000137,2]
[393311453,1762451250994,150.0,0.00014699,2]
[393311454,1762451252370,150.0,0.000137,2]
[393311455,1762451254002,150.0,0.000137,2]
[393311456,1762451255492,150.0,0.000137,2]
[393311457,1762451258199,150.0,0.000137,2]
[393311458,1762451259118,150.0,0.00014699,2]
[393311459,1762451262650,150.0,0.000137,2]
[393311460,1762451266913,150.0,0.000137,2]
[393311461,1762451268093,150.0,0.000137,2]
[393311462,1762451269769,150.0,0.000137,2]
[393311463,1762451273616,150.0,0.000137,2]
[393311464,1762451278297,150.0,0.000137,2]
[393311465,1762451278626,150.0,0.000137,2]
[393311466,1762451279903,150.0,0.000137,2]
[393311467,1762451282958,150.0,0.00014699,2]
[393311468,1762451284590,150.0,0.000137,2]
[393311469,1762451290657,150.0,0.000137,2]
[393311470,1762451291006,150.0,0.00014699,2]
[393311471,1762451291200,150.0,0.000137,2]
[393311472,1762451293740,150.0,0.000137,2]
[393311473,1762451293790,150.0,0.000137,2]
[393311474,1762451295665,150.0,0.000137,2]
[393311477,1762451304707,739.772276,0.00013699,2]
[393311478,1762451306413,150.0,0.000137,2]
[393311479,1762451320797,150.0,0.000137,2]
[393311480,1762451322737,150.0,0.000137,2]
[393311481,1762451325847,150.0,0.000137,2]
[393311482,1762451330307,150.0,0.00014699,2]
[393311483,1762451333246,150.0,0.000137,2]
[393311484,1762451358567,150.0,0.00017131,4]
[393311520,1762451432216,-150.0,0.00014848,2]
[393311521,1762451432225,-169.32,0.00015225,2]
[393311522,1762451432235,-169.31,0.00015225,2]
[393311523,1762451432245,-1200.0,0.00016176,2]
[393311524,1762451432254,-6896.4051257,0.00016177,2]
[393311525,1762451432264,-300.0,0.00016433,2]
[393311526,1762451432272,-224.0,0.00016433,2]
[393311527,1762451432282,-500.0,0.00016433,2]
[393311528,1762451432291,-484.83797191,0.00016433,2]
[393311529,1762451432300,-256.39279358,0.00016433,2]
[393311530,1762451432309,-314.08203221,0.00016433,2]
[393311531,1762451432318,-256.93408269,0.00016433,2]
[393311532,1762451432327,-11966.06391477,0.00016434,2]
[393311533,1762451432336,-376.25,0.000165,2]
[393311534,1762451432345,-204.25243674,0.00016533,2]
[393311535,1762451432355,-11246.00967147,0.00016534,2]
[393311536,1762451432367,-767.83434954,0.00016534,2]
[393311537,1762451432378,-318.5,0.00016534,2]
[393311587,1762451438094,-840.0,0.00016534,2]
[393311953,1762451631124,396.13676115,0.00014676,2]
[393311954,1762451639146,396.13676115,0.00014676,2]
[393311955,1762451647704,396.13676115,0.00014676,2]
[393311956,1762451712706,19232.2158351,0.00014451,2]
[393311967,1762451854059,3617.72977586,0.00014603,2]
[393311968,1762451862809,3617.72977586,0.00014603,2]
[393311969,1762451877676,3617.72977586,0.00014603,2]
[393311970,1762451885391,3617.72977586,0.00014603,2]
[393311971,1762451900216,3617.72977586,0.00014603,2]
[393311972,1762451907913,3617.72977586,0.00014603,2]
[393311973,1762451922740,3617.72977586,0.00014603,2]
[393311974,1762451930906,3617.72977586,0.00014603,2]
[393311975,1762451946187,3617.72977586,0.00014603,2]
[393311976,1762451954049,3617.72977586,0.00014603,2]
[393311977,1762451968870,3617.72977586,0.00014603,2]
[393311978,1762451976624,3617.72977586,0.00014603,2]
[393311979,1762451991455,3617.72977586,0.00014603,2]
[393311980,1762451999327,3617.72977586,0.00014603,2]
[393311981,1762452014707,3617.72977586,0.00014603,2]
[393311982,1762452022491,3617.72977586,0.00014603,2]
[393311983,1762452031389,206.12381681,0.00014651,2]
[393311984,1762452039211,206.12381681,0.00014651,2]
[393311985,1762452047247,206.12381681,0.00014651,2]
[393311986,1762452055067,131.66374126,0.00014651,2]
[393312042,1762452241814,150.12449029,0.00014359,2]
[393312043,1762452249595,150.12449029,0.00014359,2]
[393312044,1762452264473,150.12449029,0.00014359,2]
[393312045,1762452272237,150.12449029,0.00014359,2]
[393312046,1762452287579,150.12449029,0.00014359,2]
[393312047,1762452296418,150.12449029,0.00014359,2]
[393312048,1762452311257,150.12449029,0.00014359,2]
[393312049,1762452318966,150.12449029,0.00014359,2]
[393312050,1762452333765,150.12449029,0.00014359,2]
[393312051,1762452342099,150.12449029,0.00014359,2]
[393312052,1762452345182,8498.7650971,0.00014067,2]
[393312053,1762452345204,648.0466799,0.00014067,2]
[393312054,1762452357521,150.12449029,0.00014359,2]
[393312055,1762452365257,150.12449029,0.00014359,2]
[393312056,1762452382314,150.12449029,0.00014359,2]
[393312057,1762452390125,150.12449029,0.00014359,2]
[393312058,1762452405922,150.12449029,0.00014359,2]
[393312059,1762452414270,150.12449029,0.00014359,2]
[393312060,1762452422523,150.0,0.00014431,2]
[393312079,1762452430599,150.0,0.00014431,2]
[393312091,1762452438804,150.0,0.00014431,2]
[393312092,1762452446604,150.0,0.00014431,2]
[393312093,1762452455150,150.0,0.00014431,2]
[393312094,1762452463001,150.0,0.00014431,2]
[393312095,1762452471010,150.0,0.00014431,2]
[393312096,1762452478760,150.0,0.00014431,2]
[393312097,1762452487282,150.0,0.00014431,2]
[393312098,1762452495031,150.0,0.00014431,2]
[393312099,1762452503057,150.0,0.00014431,2]
[393312100,1762452510976,150.0,0.00014431,2]
[393312101,1762452519496,150.0,0.00014431,2]
[393312102,1762452527255,150.0,0.00014431,2]
[393312103,1762452536494,150.0,0.00014431,2]
[393312104,1762452544311,150.0,0.00014431,2]
[393312105,1762452552892,150.0,0.00014431,2]
[393312106,1762452560791,150.0,0.00014431,2]
[393312107,1762452569269,150.0,0.00014431,2]
[393312108,1762452577259,150.0,0.00014431,2]
[393312109,1762452585347,150.0,0.00014431,2]
[393312110,1762452593116,150.0,0.00014431,2]
[393312111,1762452601112,150.0,0.00014431,2]
[393312112,1762452608884,150.0,0.00014431,2]
[393312113,1762452616969,150.0,0.00014431,2]
[393312114,1762452623083,4701.21637836,0.00014136,2]
[393312115,1762452623105,10000.01,0.00014136,2]
[393312116,1762452623127,10000.01,0.00014136,2]
[393312117,1762452623148,4314.86286174,0.00014136,2]
[393312118,1762452624601,150.0,0.00014431,2]
[393312127,1762452632347,-150.0,0.00014577,2]
[393312128,1762452632357,-150.12449029,0.0001465,2]
[393312129,1762452632367,-206.12381681,0.00014799,2]
[393312130,1762452632376,-2574.64098163,0.00014899,2]
[393312131,1762452632400,-1023.12392893,0.00014899,2]
[393312132,1762452632454,-19.9648653,0.00014899,2]
[393312133,1762452632463,-292.47303267,0.00015,2]
[393312142,1762452632634,150.0,0.00014431,2]
[393312224,1762452638355,-886.95632991,0.00015,2]
[393312627,1762452703855,3939.9956299,0.00013999,2]
[393312628,1762452739629,2003.886035,0.00014004,2]
[393312629,1762452768586,169.32684,7.07e-05,2]
[393312630,1762452768798,169.32684,0.00013863,2]
[393312632,1762452785951,161.08997,0.00013974,2]
[393312633,1762452786175,161.08997,0.00013974,120]
[393312634,1762452793525,150.0,0.00018,3]
[393312635,1762452830166,9290.87656287,0.00014409,2]
[393312636,1762452838748,9290.87656287,0.00014409,2]
[393312638,1762452847020,9290.87656287,0.00014409,2]
[393312639,1762452854772,150.0,0.00014482,2]
[393312640,1762452862830,150.0,0.00014482,2]
[393312641,1762452870564,150.0,0.00014482,2]
[393312642,1762452878567,150.0,0.00014482,2]
[393312643,1762452886356,150.0,0.00014482,2]
[393312644,1762452894378,150.0,0.00014482,2]
[393312645,1762452902145,150.0,0.00014482,2]
[393312646,1762452910216,150.0,0.00014482,2]
[393312647,1762452917970,150.0,0.00014482,2]
[393312648,1762452926058,150.0,0.00014482,2]
[393312649,1762452934363,150.0,0.00014482,2]
[393312650,1762452943694,150.0,0.00014482,2]
[393312651,1762452951396,150.0,0.00014482,2]
[393312652,1762452959410,150.0,0.00014482,2]
[393312653,1762452967171,150.0,0.00014482,2]
[393312654,1762452975179,150.0,0.00014482,2]
[393312655,1762452982906,150.0,0.00014482,2]